fUST/lending_fUST_20250803
["ID","MTS","AMOUNT","RATE_DAILY","PERIOD"]
[376986267,1754188269723,-784.1,0.00028039,10]
[376986268,1754188269733,-784.1,0.00028039,10]
[376986269,1754188269742,-784.1,0.00028039,10]
[376986270,1754188269752,-784.1,0.00028039,10]
[376986271,1754188269761,-784.1,0.00028039,10]
[376986272,1754188269770,-460.0,0.00028039,10]
[376986273,1754188269780,-784.1,0.00028039,10]
[376986274,1754188269789,-460.0,0.00028039,10]
[376986275,1754188269799,-784.1,0.00028039,10]
[376986276,1754188269808,-460.0,0.00028039,10]
[376986277,1754188269819,-784.1,0.00028039,10]
[376986278,1754188269830,-460.0,0.00028039,10]
[376986279,1754188269839,-784.1,0.00028039,10]
[376986280,1754188269849,-460.0,0.00028039,10]
[376986281,1754188269858,-784.1,0.00028039,10]
[376986282,1754188269868,-460.0,0.00028039,10]
[376986283,1754188269878,-460.0,0.00028039,10]
[376986284,1754188269887,-784.1,0.00028039,10]
[376986285,1754188269898,-460.0,0.00028039,10]
[376986286,1754188269907,-784.21719055,0.00028039,10]
[376986287,1754188269920,-460.0,0.00028039,10]
[376986288,1754188269929,-460.0,0.00028039,10]
[376986289,1754188269939,-465.95,0.00028039,10]
[376986290,1754188269948,-838.02,0.00028039,10]
[376986291,1754188269957,-838.02,0.00028039,10]
[376986292,1754188269968,-838.02,0.00028039,10]
[376986293,1754188269978,-867.59,0.00028039,10]
[376986294,1754188269988,-838.02,0.00028039,10]
[376986295,1754188269999,-867.59,0.00028039,10]
[376986296,1754188270009,-838.02,0.00028039,10]
[376986297,1754188270018,-867.59,0.00028039,10]
[376986298,1754188270028,-838.02,0.00028039,10]
[376986299,1754188270037,-867.59,0.00028039,10]
[376986300,1754188270047,-838.02,0.00028039,10]
[376986301,1754188270056,-867.59,0.00028039,10]
[376986302,1754188270065,-460.0,0.00028039,10]
[376986303,1754188270074,-838.02,0.00028039,10]
[376986304,1754188270084,-867.59,0.00028039,10]
[376986305,1754188270093,-460.0,0.00028039,10]
[376986306,1754188270103,-838.02,0.00028039,10]
[376986307,1754188270112,-867.59,0.00028039,10]
[376986308,1754188270122,-460.0,0.00028039,10]
[376986309,1754188270132,-867.59,0.00028039,10]
[376986310,1754188270142,-460.0,0.00028039,10]
[376986311,1754188270151,-867.59,0.00028039,10]
[376986312,1754188270160,-460.0,0.00028039,10]
[376986313,1754188270170,-867.59,0.00028039,10]
[376986314,1754188270180,-460.0,0.00028039,10]
[376986315,1754188270189,-867.59,0.00028039,10]
[376986316,1754188270199,-460.0,0.00028039,10]
[376986317,1754188270208,-867.59,0.00028039,10]
[376986318,1754188270217,-460.0,0.00028039,10]
[376986319,1754188270227,-867.59,0.00028039,10]
[376986320,1754188270237,-460.0,0.00028039,10]
[376986321,1754188270246,-867.64189984,0.00028039,10]
[376986322,1754188270256,-460.0,0.00028039,10]
[376986323,1754188270265,-160.2,0.00028039,10]
[376986324,1754188270275,-838.02,0.00028039,10]
[376986325,1754188270284,-838.02,0.00028039,10]
[376986326,1754188270294,-838.02,0.00028039,10]
[376986327,1754188270303,-838.02,0.00028039,10]
[376986328,1754188270313,-838.13,0.00028039,10]
[376986329,1754188270323,-460.0,0.00028039,10]
[376986330,1754188270332,-460.0,0.00028039,10]
[376986331,1754188270341,-460.0,0.00028039,10]
[376986332,1754188270350,-460.0,0.00028039,10]
[376986333,1754188270359,-460.0,0.00028039,10]
[376986334,1754188270369,-460.0,0.00028039,10]
[376986335,1754188270379,-460.0,0.00028039,10]
[376986336,1754188270388,-460.0,0.00028039,10]
[376986337,1754188270397,-460.0,0.00028039,10]
[376986338,1754188270406,-460.0,0.00028039,10]
[376986339,1754188270416,-460.0,0.00028039,10]
[376986340,1754188270425,-460.0,0.00028039,10]
[376986341,1754188270434,-460.0,0.00028039,10]
[376986342,1754188270444,-702.39,0.00028039,10]
[376986343,1754188270454,-702.39,0.00028039,10]
[376986344,1754188270463,-702.39,0.00028039,10]
[376986345,1754188270472,-702.39,0.00028039,10]
[376986346,1754188270481,-702.39,0.00028039,10]
[376986347,1754188270491,-702.39,0.00028039,10]
[376986348,1754188270500,-702.39,0.00028039,10]
[376986349,1754188270509,-702.39,0.00028039,10]
[376986350,1754188270518,-702.39,0.00028039,10]
[376986351,1754188270527,-839.45,0.00028039,10]
[376986352,1754188270536,-702.39,0.00028039,10]
[376986353,1754188270546,-839.45,0.00028039,10]
[376986354,1754188270556,-702.39,0.00028039,10]
[376986355,1754188270565,-839.45,0.00028039,10]
[376986356,1754188270575,-702.39,0.00028039,10]
[376986357,1754188270584,-839.45,0.00028039,10]
[376986358,1754188270594,-702.39,0.00028039,10]
[376986359,1754188270603,-839.45,0.00028039,10]
[376986360,1754188270612,-839.45,0.00028039,10]
[376986361,1754188270623,-702.58630402,0.00028039,10]
[376986362,1754188270632,-839.45,0.00028039,10]
[376986363,1754188270642,-839.45,0.00028039,10]
[376986364,1754188270651,-839.45,0.00028039,10]
[376986365,1754188270660,-839.45,0.00028039,10]
[376986366,1754188270670,-839.45,0.00028039,10]
[376986367,1754188270679,-839.45,0.00028039,10]
[376986368,1754188270689,-839.45,0.00028039,10]
[376986369,1754188270698,-839.66,0.00028039,10]
[376986370,1754188270708,-460.0,0.00028039,10]
[376986371,1754188270719,-460.0,0.00028039,10]
[376986372,1754188270728,-460.0,0.00028039,10]
[376986373,1754188270737,-460.0,0.00028039,10]
[376986374,1754188270747,-460.0,0.00028039,10]
[376986375,1754188270756,-460.0,0.00028039,10]
[376986376,1754188270765,-460.0,0.00028039,10]
[376986377,1754188270775,-460.0,0.00028039,10]
[376986378,1754188270785,-460.0,0.00028039,10]
[376986379,1754188270794,-460.0,0.00028039,10]
[376986380,1754188270803,-460.0,0.00028039,10]
[376986381,1754188270812,-460.0,0.00028039,10]
[376986382,1754188270822,-460.0,0.00028039,10]
[376986383,1754188270831,-175.15,0.00028039,10]
[376986384,1754188270840,-460.0,0.00028039,10]
[376986385,1754188270849,-493.93535552,0.00028039,10]
[376986386,1754188270859,-460.0,0.00028039,10]
[376986387,1754188270868,-460.0,0.00028039,10]
[376986388,1754188270878,-460.0,0.00028039,10]
[376986389,1754188270887,-460.0,0.00028039,10]
[376986390,1754188270897,-460.0,0.00028039,10]
[376986391,1754188270907,-460.0,0.00028039,10]
[376986392,1754188270918,-460.0,0.00028039,10]
[376986393,1754188270928,-500.05765112,0.00028039,10]
[376986394,1754188270937,-460.0,0.00028039,10]
[376986395,1754188270947,-460.0,0.00028039,10]
[376986396,1754188270958,-460.0,0.00028039,10]
[376986397,1754188270967,-460.0,0.00028039,10]
[376986398,1754188270977,-460.0,0.00028039,10]
[376986399,1754188270986,-460.0,0.00028039,10]
[376986400,1754188270996,-460.0,0.00028039,10]
[376986401,1754188271007,-460.0,0.00028039,10]
[376986402,1754188271017,-460.0,0.00028039,10]
[376986403,1754188271026,-460.0,0.00028039,10]
[376986404,1754188271035,-225.04583849,0.00028039,10]
[376986405,1754188271045,-460.0,0.00028039,10]
[376986406,1754188271054,-460.0,0.00028039,10]
[376986407,1754188271063,-460.0,0.00028039,10]
[376986408,1754188271071,-460.0,0.00028039,10]
[376986409,1754188271081,-408.88176805,0.00028039,10]
[376986410,1754188271091,-200.46260399,0.00028041,10]
[376986411,1754188271208,-160.46320362,0.00028041,10]
[376986412,1754188271219,-151.0,0.00028042,7]
[376986413,1754188271228,-151.0,0.00028042,7]
[376986414,1754188271238,-151.0,0.00028042,7]
[376986415,1754188271248,-151.0,0.00028042,7]
[376986416,1754188271261,-151.0,0.00028042,7]
[376986417,1754188271271,-160.883335,0.00028042,7]
[376986418,1754188271282,-151.0,0.00028042,7]
[376986419,1754188271293,-516.47,0.00028059,30]
[376986420,1754188271303,-1144246.7432892,0.00028072,20]
[376986421,1754188271312,-23108.89124426,0.00028072,2]
[376986422,1754188271322,-91090.16428994,0.00028072,20]
[376986423,1754188271344,-94474.14023205,0.00028072,20]
[376986424,1754188271354,-4240.62658678,0.00028072,5]
[376986425,1754188271364,-113762.57423939,0.00028072,2]
[376986426,1754188271373,-84957.11180241,0.00028072,20]
[376986427,1754188271592,-460.0,0.00027945,10]
[376986428,1754188271601,-155.08863972,0.00027945,10]
[376986429,1754188271613,-304.91136028,0.00027945,10]
[376986430,1754188271624,-460.0,0.00027945,10]
[376986431,1754188271635,-381.6790376,0.00027988,10]
[376986432,1754188271650,-78.3209624,0.00027988,10]
[376986433,1754188271659,-325.35184759,0.00027988,10]
[376986434,1754188271670,-355.78815241,0.00027988,10]
[376986435,1754188271680,-460.0,0.00027988,10]
[376986436,1754188271688,-13.49202015,0.00027988,10]
[376986437,1754188271708,-667.64797985,0.00027988,10]
[376986438,1754188271717,-460.0,0.00027988,10]
[376986439,1754188271730,-300.06480825,0.00027988,10]
[376986440,1754188271743,-159.93519175,0.00027988,10]
[376986441,1754188271753,-460.0,0.00027988,10]
[376986442,1754188271763,-460.0,0.00027989,10]
[376986443,1754188271772,-681.14,0.00027998,10]
[376986444,1754188271781,-681.14,0.00027998,10]
[376986445,1754188271792,-460.0,0.00027998,10]
[376986446,1754188271802,-476.98773544,0.00027998,10]
[376986447,1754188271811,-681.14,0.00028025,10]
[376986448,1754188271821,-681.14,0.00028026,10]
[376986449,1754188271831,-681.14,0.00028026,10]
[376986450,1754188271840,-538.19,0.00028027,10]
[376986451,1754188271850,-538.19,0.00028027,10]
[376986452,1754188271860,-538.19,0.00028027,10]
[376986453,1754188271870,-1716.01,0.00028027,10]
[376986454,1754188271880,-490.15087868,0.00028027,10]
[376986455,1754188271893,-48.03912132,0.00028027,10]
[376986456,1754188271903,-226.89689573,0.00028027,10]
[376986457,1754188272124,-460.0,0.00027945,10]
[376986458,1754188272134,-389.80179425,0.00027945,10]
[376986459,1754188272148,-70.19820575,0.00027945,10]
[376986460,1754188272158,-461.45417233,0.00027945,10]
[376986461,1754188272168,-460.0,0.00027988,10]
[376986462,1754188272179,-460.0,0.00027988,10]
[376986463,1754188272191,-460.0,0.00027988,10]
[376986464,1754188272202,-460.0,0.00027989,10]
[376986465,1754188272213,-460.0,0.00027989,10]
[376986466,1754188272224,-460.0,0.00027989,10]
[376986467,1754188272234,-460.0,0.00027989,10]
[376986468,1754188272244,-460.0,0.00027998,10]
[376986469,1754188272253,-460.0,0.00027998,10]
[376986470,1754188272262,-460.0,0.00027999,10]
[376986471,1754188272271,-260.11181223,0.00028025,10]
[376986472,1754188272281,-573.05188652,0.00028025,10]
[376986473,1754188272291,-311.29310427,0.00028027,10]
[376986474,1754188272300,-1716.01,0.00028027,10]
[376986475,1754188272309,-538.19,0.00028027,10]
[376986476,1754188272318,-1716.01,0.00028027,10]
[376986477,1754188272327,-538.27511271,0.00028027,10]
[376986478,1754188272337,-1716.01,0.00028027,10]
[376986479,1754188272346,-1716.01,0.00028027,10]
[376986480,1754188272355,-1716.15,0.00028027,10]
[376986481,1754188272364,-460.0,0.00028027,10]
[376986482,1754188272373,-559.65,0.00028027,10]
[376986483,1754188272383,-460.0,0.00028027,10]
[376986484,1754188272392,-559.65,0.00028027,10]
[376986485,1754188272402,-460.0,0.00028027,10]
[376986486,1754188272411,-559.65,0.00028027,10]
[376986487,1754188272420,-562.57243056,0.00028027,10]
[376986488,1754188272429,-559.65,0.00028027,10]
[376986489,1754188272439,-559.65,0.00028027,10]
[376986490,1754188272448,-681.14,0.00028039,10]
[376986491,1754188272457,-681.14,0.00028039,10]
[376986492,1754188272467,-681.14,0.00028039,10]
[376986493,1754188272476,-681.14,0.00028039,10]
[376986494,1754188272485,-681.14,0.00028039,10]
[376986495,1754188272495,-681.14,0.00028039,10]
[376986496,1754188272504,-681.14,0.00028039,10]
[376986497,1754188272513,-681.14,0.00028039,10]
[376986498,1754188272522,-681.14,0.00028039,10]
[376986499,1754188272532,-681.14,0.00028039,10]
[376986500,1754188272541,-681.14,0.00028039,10]
[376986501,1754188272551,-681.14,0.00028039,10]
[376986502,1754188272561,-143438.53618886,0.00028072,20]
[376986503,1754188272570,-53505.09654518,0.00028072,2]
[376986504,1754188272582,-417.99388369,0.00028072,2]
[376986505,1754188272791,-460.0,0.00027945,10]
[376986506,1754188272801,-50.2507475,0.00027945,10]
[376986507,1754188272812,-303.04578161,0.00027945,10]
[376986508,1754188272824,-106.70347089,0.00027945,10]
[376986509,1754188272833,-365.65259789,0.00027945,10]
[376986510,1754188272844,-94.34740211,0.00027945,10]
[376986511,1754188272853,-460.0,0.00027945,10]
[376986512,1754188272862,-460.0,0.00027945,10]
[376986513,1754188272871,-460.0,0.00027945,10]
[376986514,1754188272880,-460.0,0.00027945,10]
[376986515,1754188272890,-209.0197677,0.00027945,10]
[376986516,1754188272899,-461.0604734,0.00027945,10]
[376986517,1754188272908,-460.0,0.00027988,10]
[376986518,1754188272921,-460.0,0.00027988,10]
[376986519,1754188272930,-460.0,0.00027988,10]
[376986520,1754188272940,-460.0,0.00027988,10]
[376986521,1754188272950,-460.0,0.00027988,10]
[376986522,1754188272959,-460.0,0.00027988,10]
[376986523,1754188272970,-460.0,0.00027988,10]
[376986524,1754188272980,-460.0,0.00027988,10]
[376986525,1754188272990,-460.0,0.00027998,10]
[376986526,1754188273000,-460.0,0.00027998,10]
[376986527,1754188273009,-460.0,0.00027999,10]
[376986528,1754188273019,-460.0,0.00027999,10]
[376986529,1754188273028,-460.0,0.00027999,10]
[376986530,1754188273037,-460.0,0.00028025,10]
[376986531,1754188273047,-460.0,0.00028026,10]
[376986532,1754188273056,-460.0,0.00028026,10]
[376986533,1754188273065,-559.65,0.00028027,10]
[376986534,1754188273074,-559.65,0.00028027,10]
[376986535,1754188273084,-559.65,0.00028027,10]
[376986536,1754188273094,-681.14,0.00028039,10]
[376986537,1754188273103,-13.72235679,0.00028039,10]
[376986538,1754188273114,-667.53969504,0.00028039,10]
[376986539,1754188273124,-3769.08800407,0.00028072,2]
[376986540,1754188273136,-881.7086952,0.00028072,2]
[376986541,1754188273148,-17358.0,0.00028072,2]
[376986542,1754188273159,-1929.67523744,0.00028072,2]
[376986543,1754188273170,-7343.1915504,0.00028072,2]
[376986544,1754188273182,-5135.05200422,0.00028072,2]
[376986545,1754188273210,-460.0,0.00027945,10]
[376986546,1754188273220,-460.0,0.00027999,10]
[376986547,1754188273229,-401.87702452,0.00028025,10]
[376986548,1754188273241,-58.12297548,0.00028025,10]
[376986549,1754188273251,-559.65,0.00028027,10]
[376986550,1754188273260,-53.02392056,0.00028072,2]
[376986551,1754188273273,-429.35548269,0.00028072,2]
[376986553,1754188563956,1660.0,0.00028089,30]
[376986555,1754188671868,165.215992,0.00013699,2]
[376986556,1754188672062,165.215992,0.00020548,2]
[376986557,1754188694006,874.6,0.00027397,120]
[376986582,1754189154087,-163.0,0.00024,7]
[376986583,1754189154109,-500.0,0.00024253,2]
[376986584,1754189154135,-176.99,0.00025332,7]
[376986585,1754189154157,-176.99,0.00025432,7]
[376986586,1754189154179,-177.0,0.00025532,7]
[376986587,1754189154199,-150.0,0.00025972,2]
[376986588,1754189154221,-500.0,0.00026445,2]
[376986589,1754189154244,-11.80579771,0.00026477,2]
[376986590,1754189202095,-178.45818747,0.00025232,2]
[376986591,1754189247087,-197.23933076,0.00025232,2]
[376986592,1754189247108,-460.95174316,0.00026477,2]
[376986593,1754189247131,-558.34,0.00026477,7]
[376986594,1754189247153,-390.80031248,0.00026495,2]
[376986613,1754189432294,-500.0,0.00024253,2]
[376986615,1754189432304,-10.9,0.00024953,2]
[376986617,1754189432317,-400.89588949,0.00024953,2]
[376986619,1754189432327,-848.454607,0.00026193,2]
[376986622,1754189432339,-151.545393,0.00026193,2]
[376986624,1754189432348,-191.3710278,0.00026364,2]
[376986626,1754189432359,-500.0,0.00026445,2]
[376986628,1754189432368,-160.0,0.00026488,2]
[376986630,1754189432378,-160.0,0.00026495,2]
[376986631,1754189432387,-204.95,0.00026526,2]
[376986633,1754189432396,-300.0,0.00026908,2]
[376986634,1754189432407,-430.4623945,0.00026909,2]
[376986635,1754189432416,-430.4623945,0.00026909,2]
[376986636,1754189432426,-430.4623945,0.00026909,2]
[376986637,1754189432435,-430.4623945,0.00026909,2]
[376986638,1754189432445,-430.4623945,0.00026909,2]
[376986639,1754189432455,-1696.88716953,0.00026909,2]
[376986640,1754189432464,-437.7385437,0.00026941,2]
[376986641,1754189432474,-791.54,0.00027,2]
[376986642,1754189432484,-160.0,0.00027,5]
[376986643,1754189432493,-1266.67298495,0.00027108,3]
[376986644,1754189432506,-559.96701505,0.00027108,3]
[376986645,1754189432516,-151.0,0.0002711,7]
[376986646,1754189432525,-154.47785623,0.00027264,3]
[376986647,1754189432541,-2472.18209713,0.00027264,3]
[376986669,1754189438317,-496.31,0.00026495,7]
[376986670,1754189438328,-712.39,0.00027,2]
[376986671,1754189438338,-496.31,0.00027107,7]
[376986672,1754189438347,-2373.34004664,0.00027264,3]
[376986673,1754189438358,-151.0,0.00027271,7]
[376986674,1754189438368,-165.215992,0.00027397,2]
[376986675,1754189438513,-216.45058779,0.00027397,2]
[376986676,1754189438524,-151.0,0.00027431,7]
[376986677,1754189438534,-300.76002701,0.00027544,2]
[376986678,1754189438544,-150.0,0.00027559,2]
[376986679,1754189438554,-407.0,0.00027559,2]
[376986680,1754189438563,-151.0,0.00027591,7]
[376986682,1754189438574,-446.05088271,0.00027718,7]
[376986683,1754189438610,-50.25911729,0.00027718,7]
[376986684,1754189438625,-160.638,0.00027751,17]
[376986685,1754189438635,-96.81367679,0.00027751,7]
[376986686,1754189438651,-54.18632321,0.00027751,7]
[376986687,1754189438661,-160.0,0.00027822,2]
[376986688,1754189438671,-160.0,0.00027822,2]
[376986689,1754189438683,-215.12253551,0.00027824,2]
[376986690,1754189438694,-160.0,0.00027824,2]
[376986691,1754189438705,-160.0,0.00027824,2]
[376986692,1754189438718,-321.63603872,0.00027835,2]
[376986693,1754189438728,-658.10133356,0.00027845,2]
[376986694,1754189438740,-458.71052779,0.00027845,2]
[376986695,1754189438751,-1155.9649899,0.00027858,30]
[376986696,1754189438761,-160.2170531,0.00027863,30]
[376986697,1754189438771,-578.5960598,0.00027863,30]
[376986698,1754189438781,-178.563763,0.00027863,30]
[376986699,1754189438790,-153.0,0.00027863,30]
[376986700,1754189438800,-153.0,0.00027863,30]
[376986701,1754189438810,-46.03567592,0.00027863,30]
[376986702,1754189438822,-106.96432408,0.00027863,30]
[376986703,1754189438832,-160.2170531,0.00027863,30]
[376986704,1754189438842,-178.563763,0.00027863,30]
[376986705,1754189438851,-578.5960598,0.00027863,30]
[376986706,1754189438861,-153.0,0.00027863,30]
[376986707,1754189438871,-155.1169279,0.00027863,30]
[376986708,1754189438880,-160.2170531,0.00027863,30]
[376986709,1754189438891,-146.93735144,0.00027863,30]
[376986710,1754189438908,-431.65870836,0.00027863,30]
[376986711,1754189438919,-178.563763,0.00027863,30]
[376986712,1754189438929,-154.6241674,0.00027863,30]
[376986713,1754189438939,-306.0,0.00027863,30]
[376986714,1754189438949,-578.5960598,0.00027863,30]
[376986715,1754189438959,-160.2170531,0.00027863,30]
[376986716,1754189438969,-178.563763,0.00027863,30]
[376986717,1754189438978,-160.2170531,0.00027863,30]
[376986718,1754189438989,-178.563763,0.00027863,30]
[376986719,1754189438999,-430.4623945,0.00027868,30]
[376986720,1754189439009,-430.4623945,0.00027868,30]
[376986721,1754189439018,-430.4623945,0.00027868,30]
[376986722,1754189439028,-430.4623945,0.00027868,30]
[376986723,1754189439037,-430.4623945,0.00027868,30]
[376986724,1754189439047,-430.4623945,0.00027868,30]
[376986725,1754189439056,-430.4623945,0.00027868,30]
[376986726,1754189439066,-426.3195311,0.00027868,30]
[376986727,1754189439075,-153.0,0.00027868,30]
[376986728,1754189439085,-1153.065775,0.00027868,30]
[376986729,1754189439096,-178.563763,0.00027868,30]
[376986730,1754189439106,-160.2170531,0.00027868,30]
[376986731,1754189439116,-153.0,0.00027868,30]
[376986732,1754189439126,-160.2170531,0.00027868,30]
[376986733,1754189439136,-178.563763,0.00027868,30]
[376986734,1754189439146,-160.2170531,0.00027868,30]
[376986735,1754189439155,-153.0,0.00027868,30]
[376986736,1754189439165,-178.563763,0.00027868,30]
[376986737,1754189439176,-151.0,0.00027912,7]
[376986738,1754189439185,-597.78186686,0.00027934,2]
[376986739,1754189439196,-3031.63,0.00027934,2]
[376986740,1754189439206,-46304.00546007,0.00027935,2]
[376986741,1754189439218,-10611.72020486,0.00027935,2]
[376986742,1754189439234,-8786.22613887,0.00027935,2]
[376986743,1754189439250,-198656.2536502,0.00027935,2]
[376986744,1754189439259,-303.6352623,0.00027935,2]
[376986745,1754189439270,-200.0,0.00027935,10]
[376986746,1754189439281,-204.032767,0.00027935,10]
[376986747,1754189439292,-460.0,0.00027945,10]
[376986748,1754189439302,-151.0,0.00027945,7]
[376986749,1754189439312,-151.0,0.00027945,7]
[376986750,1754189439322,-151.0,0.00027945,7]
[376986751,1754189439331,-494.64838208,0.00027945,10]
[376986752,1754189439341,-461.81013621,0.00027945,10]
[376986753,1754189439351,-312.16666667,0.00027945,10]
[376986754,1754189439363,-460.0,0.00027945,10]
[376986755,1754189439374,-460.0,0.00027945,10]
[376986756,1754189439383,-460.0,0.00027945,10]
[376986757,1754189439393,-460.83112639,0.00027945,10]
[376986758,1754189439402,-460.0,0.00027945,10]
[376986759,1754189439412,-460.0,0.00027945,10]
[376986760,1754189439422,-412.88939773,0.00027945,10]
[376986761,1754189439432,-460.0,0.00027945,10]
[376986762,1754189439442,-460.0,0.00027945,10]
[376986763,1754189439451,-460.17465749,0.00027945,10]
[376986764,1754189439461,-460.0,0.00027945,10]
[376986765,1754189439471,-460.0,0.00027945,10]
[376986766,1754189439480,-575.27060609,0.00027945,10]
[376986767,1754189439490,-460.0,0.00027945,10]
[376986768,1754189439499,-460.0,0.00027945,10]
[376986769,1754189439510,-460.0,0.00027945,10]
[376986770,1754189439521,-460.0,0.00027945,10]
[376986771,1754189439530,-460.0,0.00027945,10]
[376986772,1754189439540,-460.0,0.00027945,10]
[376986773,1754189439550,-460.0,0.00027945,10]
[376986774,1754189439560,-460.0,0.00027945,10]
[376986775,1754189439569,-460.0,0.00027945,10]
[376986776,1754189439578,-460.0,0.00027945,10]
[376986777,1754189439588,-460.0,0.00027945,10]
[376986778,1754189439597,-460.0,0.00027945,10]
[376986779,1754189439607,-460.0,0.00027945,10]
[376986780,1754189439617,-460.0,0.00027945,10]
[376986781,1754189439627,-500.0,0.00027945,10]
[376986782,1754189439640,-460.0,0.00027945,10]
[376986783,1754189439653,-460.0,0.00027945,10]
[376986784,1754189439662,-460.0,0.00027945,10]
[376986785,1754189439674,-463.43922968,0.00027945,10]
[376986786,1754189439685,-460.0,0.00027945,10]
[376986787,1754189439695,-460.0,0.00027945,10]
[376986788,1754189439705,-460.0,0.00027945,10]
[376986789,1754189439717,-460.0,0.00027945,10]
[376986790,1754189439728,-460.0,0.00027945,10]
[376986791,1754189439739,-460.0,0.00027945,10]
[376986792,1754189439751,-460.0,0.00027945,10]
[376986793,1754189439761,-460.0,0.00027945,10]
[376986794,1754189439771,-461.58210267,0.00027945,10]
[376986795,1754189439782,-460.0,0.00027945,10]
[376986796,1754189439793,-460.0,0.00027945,10]
[376986797,1754189439805,-463.04354074,0.00027945,10]
[376986798,1754189439815,-460.0,0.00027945,10]
[376986799,1754189439825,-460.0,0.00027945,10]
[376986800,1754189439836,-460.0,0.00027945,10]
[376986801,1754189439848,-172.115948,0.00027945,10]
[376986802,1754189439858,-460.0,0.00027945,10]
[376986803,1754189439868,-460.0,0.00027945,10]
[376986804,1754189439877,-460.0,0.00027945,10]
[376986805,1754189439886,-460.0,0.00027945,10]
[376986806,1754189439896,-460.0,0.00027945,10]
[376986807,1754189439905,-460.0,0.00027945,10]
[376986808,1754189439915,-460.0,0.00027945,10]
[376986809,1754189439925,-460.0,0.00027945,10]
[376986810,1754189439934,-460.0,0.00027945,10]
[376986811,1754189439944,-460.0,0.00027945,10]
[376986812,1754189439955,-460.0,0.00027945,10]
[376986813,1754189439966,-460.0,0.00027945,10]
[376986814,1754189439976,-460.0,0.00027945,10]
[376986815,1754189439986,-215.70921542,0.00027945,10]
[376986816,1754189439996,-460.0,0.00027945,10]
[376986817,1754189440007,-460.0,0.00027945,10]
[376986818,1754189440016,-460.0,0.00027945,10]
[376986819,1754189440026,-460.0,0.00027945,10]
[376986820,1754189440036,-460.0,0.00027945,10]
[376986821,1754189440046,-460.0,0.00027945,10]
[376986822,1754189440056,-416.69428752,0.00027945,10]
[376986823,1754189440065,-460.0,0.00027945,10]
[376986824,1754189440076,-460.0,0.00027945,10]
[376986825,1754189440086,-460.0,0.00027945,10]
[376986826,1754189440096,-465.91530677,0.00027945,10]
[376986827,1754189440106,-460.0,0.00027945,10]
[376986828,1754189440116,-460.0,0.00027945,10]
[376986829,1754189440125,-460.0,0.00027945,10]
[376986830,1754189440135,-461.47516457,0.00027945,10]
[376986831,1754189440145,-867.49,0.00027945,10]
[376986832,1754189440155,-867.49,0.00027945,10]
[376986833,1754189440166,-460.0,0.00027945,10]
[376986834,1754189440176,-460.0,0.00027945,10]
[376986835,1754189440185,-461.29987958,0.00027945,10]
[376986836,1754189440195,-460.0,0.00027945,10]
[376986837,1754189440205,-460.0,0.00027945,10]
[376986838,1754189440214,-460.0,0.00027945,10]
[376986840,1754189440223,-460.0,0.00027945,10]
[376986841,1754189440233,-460.0,0.00027945,10]
[376986842,1754189440243,-460.0,0.00027945,10]
[376986844,1754189440253,-484.65521036,0.00027945,7]